Cogmind - Beta 16 @@@ ROGUE MODE // 2025.11.24 @ 17:46:38 Player: delto Result: Destroyed by B-86 Titan with Hardcell Cannon Performance ------------- Evolutions (6) 3000 Regions Visited (13) 2600 Robots Destroyed (68) 340 Value Destroyed (2267) 2267 Prototype IDs (0) 0 Alien Tech Used (0) 0 Bonus (410) 410 TOTAL SCORE: 8617 Bonus ------- Entered DSFs 500 Friendly Fire -90 Cogmind --------- Core Integrity 0/1150 Matter 300/300 Energy 99/100 System Corruption 3% Temperature Cool (9) Movement Core (50) Location -4/Factory Parts ------- > --- POWER (2) -------- (None) > --- PROPULSION (4) --- (None) > --- UTILITY (11) ----- (None) > --- WEAPON (2) ------- (None) > --- INVENTORY (5) ---- (None) Peak State ------------ > --- POWER ------------ Light Nuclear Core Neutrino Core > --- PROPULSION ------- Armored Huge Wheel Armored Huge Wheel > --- UTILITY ---------- Advanced Heat Sink Compact Battery Compact Matter Pod Matter Compressor Advanced Terrain Scanner Core Analyzer Makeshift Transmission Jammer Makeshift Weapon Shielding Makeshift Light Armor Plating Improved Hacking Suite System Guard > --- WEAPON ----------- Long-range Proton Cannon Railgun > --- INVENTORY -------- Light Nuclear Core Neutrino Core Compact Wheel Compact Wheel Weight Redist. System [Rating: 87] Favorites ----------- Power Light Nuclear Core Engine Ion Engine Power Core Light Nuclear Core Propulsion Armored Treads Treads Armored Treads Leg Flexi-carbon Leg Wheel Compact Wheel Flight Unit VTOL Module Utility Core Analyzer Device Weight Redist. System Storage Matter Compressor Processor Core Analyzer Hackware Improved Hacking Suite Protection Makeshift Weapon Shielding Weapon Gauss Rifle Energy Gun Lightning Gun Energy Cannon Long-range Proton Cannon Ballistic Gun Gauss Rifle Launcher Rocket Launcher Impact Weapon Flail Slashing Weapon Ripper Build | -11 -10 -9 -9 -8 -7 -7 -7 -6 -6 -6 -5 -5 -4 ------- Run | Yrd Mat Mat Min Mat Fac Low Low Fac Low Low Fac DSF Fac Slots Evolved 12 | . . 2 . 2 2 . . 2 . . 2 . 2 Power 1 | . . . . . . . . . . . . . 1 Propulsion 2 | . . . . . 1 . . . . . . . 1 Utility 9 | . . 2 . 2 1 . . 2 . . 2 . . Weapon . | . . . . . . . . . . . . . . Parts Attached 116 | 7 4 15 4 6 9 6 . 10 13 2 3 4 33 Power 18 | 1 . 3 1 1 . 1 . . 1 . . . 10 Engine 6 | 1 . 3 1 . . . . . . . . . 1 Core 12 | . . . . 1 . 1 . . 1 . . . 9 Reactor . | . . . . . . . . . . . . . . Propulsion 22 | 2 1 3 . 1 1 1 . . 1 1 . 2 9 Treads 5 | 1 . 2 . 1 . 1 . . . . . . . Leg 3 | . . . . . . . . . . 1 . . 2 Wheel 13 | 1 1 1 . . 1 . . . . . . 2 7 Hover . | . . . . . . . . . . . . . . Flight 1 | . . . . . . . . . 1 . . . . Utility 48 | 2 1 3 3 2 5 3 . 9 7 1 2 . 10 Device 23 | 1 1 1 2 1 4 1 . 5 3 1 . . 3 Storage 11 | 1 . 1 . . . 1 . . 2 . 1 . 5 Processor 5 | . . 1 . . . 1 . 1 . . 1 . 1 Hackware 1 | . . . . . . . . . . . . . 1 Protection 8 | . . . 1 1 1 . . 3 2 . . . . Artifact . | . . . . . . . . . . . . . . Weapon 28 | 2 2 6 . 2 3 1 . 1 4 . 1 2 4 Energy Gun 9 | . 1 1 . 1 . 1 . . 2 . . . 3 Energy Cannon 2 | . . . . . 1 . . . . . 1 . . Ballistic Gun 8 | 2 . 1 . . 1 . . . 2 . . 1 1 Ballistic Cannon . | . . . . . . . . . . . . . . Launcher 6 | . 1 2 . 1 1 . . . . . . 1 . Special Weapon . | . . . . . . . . . . . . . . Impact Weapon 2 | . . 2 . . . . . . . . . . . Slashing Weapon 1 | . . . . . . . . 1 . . . . . Piercing Weapon . | . . . . . . . . . . . . . . Special Melee Weapon . | . . . . . . . . . . . . . . Unidentified Prototypes . | . . . . . . . . . . . . . . Parts Lost 74 | . 1 9 4 6 . 1 . . 9 1 1 3 39 Power 16 | . . 3 1 1 . . . . 1 . . . 10 Propulsion 19 | . 1 2 1 1 . . . . 2 . . 1 11 Utility 22 | . . 1 1 2 . 1 . . 4 1 . . 12 Weapon 17 | . . 3 1 2 . . . . 2 . 1 2 6 Highest Loss Streak 28 | . 1 5 6 5 . 1 . . 7 1 1 3 28 To Critical Strikes . | . . . . . . . . . . . . . . Average Backups 5 | 3 6 9 8 8 1 4 4 4 4 5 4 3 6 Power . | . 1 . . . . . . . . 1 2 2 2 Propulsion . | 1 1 1 . . . . . . . . . 1 2 Utility 3 | . 2 5 7 7 . 1 2 1 3 2 1 . . Weapon 1 | . 1 1 . 1 1 2 2 3 1 1 1 . . Tool/Special . | . . . . . . . . . . . . . . Unused Backups 27 | . 2 3 2 3 . 4 1 3 5 1 2 1 . Power 1 | . 1 . . . . . . . . . . . . Propulsion 2 | . . 1 . . . . . . 1 . . . . Utility 13 | . . . 2 3 . 3 1 . 2 . 1 1 . Weapon 11 | . 1 2 . . . 1 . 3 2 1 1 . . Tool/Special . | . . . . . . . . . . . . . . Average Slot Usage (%) 89 | . 100 99 81 67 51 84 100 99 88 86 87 92 83 Engine 2 | . 14 11 11 6 . . . . . . . . . Core 4 | . . . . 2 . 3 7 6 4 6 5 5 9 Treads 7 | . 14 11 2 . 7 13 15 13 4 . . . . Wheel 7 | . 14 11 11 6 4 7 7 6 6 6 5 9 9 Device 22 | . 14 21 12 22 23 29 30 29 22 20 17 17 13 Storage 7 | . 14 11 11 8 . 2 7 1 3 7 17 17 16 Processor 8 | . . 11 9 . . 5 7 8 12 6 10 11 11 Protection 11 | . . . 1 5 3 7 7 19 20 24 17 17 8 Energy Gun 3 | . 7 11 . 3 . 3 7 4 3 . . . 1 Ballistic Gun 6 | . 14 1 8 3 4 7 7 6 6 13 9 3 5 Launcher 1 | . 7 2 2 5 4 . . . . . . 1 . Impact Weapon 1 | . . 5 11 4 . . . . . . . . . Peak Build Rating 87 | 9 11 19 20 29 19 31 31 51 53 56 60 68 87 Average Rating 37 | 6 10 17 17 23 15 26 30 44 48 52 59 65 76 On Entrance 30 | . 9 11 15 20 3 18 30 31 51 53 52 60 67 Avg Prop Armor Cover (%) 14 | 13 11 10 11 . 13 17 17 16 11 2 . . . Naked Turns 11 | . . . . . . . . . . . . . 11 Heaviest Build 129 | 14 17 23 25 46 13 22 22 32 41 41 39 41 129 Greatest Support 62 | 20 20 23 10 20 22 46 22 46 22 22 22 50 62 Greatest Overweight (x) 15 | 1 1 5 2 15 . . . 1 7 1 1 1 6 Average Overweight (x) . | . . 1 2 3 . . . . 1 1 1 . . Largest Inventory Capacity 25 | 8 8 10 10 10 5 5 5 5 5 5 5 5 25 Average Capacity 7 | 7 8 9 10 9 5 5 5 5 5 5 5 5 17 Most Carried 18 | 6 8 10 10 10 5 5 5 5 5 5 5 5 18 Average Carried 5 | 3 7 9 8 8 1 4 4 4 4 4 4 4 6 Final Capacity 10 | 8 8 10 10 5 5 5 5 5 5 5 5 5 5 Final Carried 9 | 6 8 7 9 5 5 2 5 5 5 5 5 5 . Scrap Suit Usage (%) 12 | . . . 84 97 . . . . . . . . . Parts Cannibalized 3 | . . . 3 . . . . . . . . . . Class Distribution -------------------- 36% | Mutant 33% | Derelict-Mutant 30% | Scavenger-Mutant Dominant Class ---------------- Mutant | -10/Materials Scavenger-Mutant | -9/Materials Mutant | -9/Mines Mutant | -8/Materials Mutant | -7/Factory Mutant | -7/Lower Caves Scavenger-Mutant | -7/Lower Caves Derelict-Mutant | -6/Factory Derelict-Mutant | -6/Lower Caves Derelict-Mutant | -6/Lower Caves Derelict-Mutant | -5/Factory Derelict-Mutant | -5/DSF Derelict-Mutant | -4/Factory Resources | -11 -10 -9 -9 -8 -7 -7 -7 -6 -6 -6 -5 -5 -4 ----------- Run | Yrd Mat Mat Min Mat Fac Low Low Fac Low Low Fac DSF Fac Matter Collected 2522 | 305 115 164 135 93 . 367 49 67 553 282 80 56 256 Remotely 638 | . . . . . . 180 49 67 342 . . . . Salvage Created 2600 | 112 180 428 89 207 . 183 . 67 325 201 129 86 593 Parts 147 | 9 9 35 6 7 . 8 . 3 19 6 6 8 31 Haulers Intercepted . | . . . . . . . . . . . . . . Recyclers Shooed 2 | 1 1 . . . . . . . . . . . . Parts Field Recycled . | . . . . . . . . . . . . . . Retrieved Matter . | . . . . . . . . . . . . . . Parts Self-Destructed 22 | . . . . . . 6 3 . 13 . . . . Prevented 7 | . . . . . . . . . 6 1 . . . Parts Restored . | . . . . . . . . . . . . . . Kills | -11 -10 -9 -9 -8 -7 -7 -7 -6 -6 -6 -5 -5 -4 ------- Run | Yrd Mat Mat Min Mat Fac Low Low Fac Low Low Fac DSF Fac Combat Hostiles Destroyed 51 | . 2 15 6 6 . 4 . 1 6 1 1 2 7 Melee 4 | . . 1 . . . . . . 3 . . . . Guns 24 | . 2 5 2 2 . 3 . 1 3 1 . . 5 Cannons 4 | . . . . . . . . . . . 1 1 2 AOE 19 | . . 9 4 4 . 1 . . . . . 1 . Classes Destroyed 15 | 2 2 4 1 . . . . . 1 1 . 1 3 Worker 4 | . . 1 . . . . . . . . 2 . 1 Builder 1 | . . . . . . . . . . . . . 1 Tunneler 2 | 2 . . . . . . . . . . . . . Recycler 4 | 1 1 1 . 1 . . . . . . . . . Operator 2 | . . . . . . . . . . . . . 2 Watcher 4 | . 2 1 . . . . . . . . . . 1 Swarmer 19 | . . 10 3 3 . . . . 3 . . . . Grunt 21 | . 2 1 2 3 . 4 . 1 2 1 . . 5 Brawler 1 | . . . 1 . . . . . . . . . . Duelist 1 | . . 1 . . . . . . . . . . . Sentry 4 | . . 3 . . . . . . . . 1 . . Specialist 2 | . . . . . . . . . . . . 2 . Programmer 2 | . . . . . . . . . . . . . 2 Behemoth 1 | . . . . . . . . . 1 . . . . Decomposer 1 | . . . . . . . . . . 1 . . . Samaritan 3 | . . . . . . . . . . 3 . . . Best Kill Streak 12 | 3 3 9 12 4 . 4 . 1 3 1 2 2 8 Combat Bots Only 11 | . 2 8 11 3 . 4 . 1 3 1 1 2 4 Max Kills in Single Turn 4 | 2 1 4 2 2 . 1 . 1 1 1 1 1 3 Gunslinging . | . . . . . . . . . . . . . . Exploded 3 | . . 3 2 2 . 1 . . . . . 1 . Melee 1 | . . 1 . . . . . . 1 . . . . Uniques/NPCs Destroyed . | . . . . . . . . . . . . . . Combat | -11 -10 -9 -9 -8 -7 -7 -7 -6 -6 -6 -5 -5 -4 -------- Run | Yrd Mat Mat Min Mat Fac Low Low Fac Low Low Fac DSF Fac Hostile Shots Fired 908 | . 16 123 21 82 . 25 24 42 87 14 6 24 444 Missed 330 | . . 28 6 14 . 5 11 19 30 8 1 7 201 Hits 578 | . 16 95 15 68 . 20 13 23 57 6 5 17 243 Melee 2 | . . . 2 . . . . . . . . . . Projectile 576 | . 16 95 13 68 . 20 13 23 57 6 5 17 243 AOE 3 | . . . . . . . . . . . . . 3 Critical Strikes 19 | . . 1 . 2 . . . . 1 . . 1 14 Actively Blocked 3 | . . . . . . . . . . . . 1 2 Damage Taken 9459 | . 220 1095 384 1029 . 363 98 187 1239 143 117 550 4034 Core 1840 | . 51 168 84 99 . 31 . 11 137 25 23 52 1159 Absorbed by Shields 34 | . . 16 18 . . . . . . . . . . Redirected to Shielding 215 | . . . . . . . . 5 115 4 9 25 57 Regen/Repaired (Parts) 27 | . . . 27 . . . . . . . . . . Core Remaining (%) 80 | 100 79 . 37 82 . . 95 . . 79 . 92 . Volleys Fired 184 | 13 15 25 12 10 . 7 . 3 36 14 8 3 38 Largest 2 | 2 2 2 1 2 . 2 . 2 2 2 2 2 2 Hottest 120 | 40 95 110 33 111 . 83 . 83 90 63 111 120 116 Shots Fired 327 | 26 28 47 12 18 . 14 . 5 51 28 16 6 76 Gun 269 | 26 26 39 4 8 . 12 . 5 51 28 15 . 55 Cannon 25 | . . . . . . . . . . . 1 3 21 Launcher 33 | . 2 8 8 10 . 2 . . . . . 3 . Special . | . . . . . . . . . . . . . . Kinetic 194 | 26 22 9 4 . . 7 . 3 37 28 15 . 43 Thermal 46 | . 4 22 . 8 . . . . . . . . 12 Explosive 32 | . 2 7 8 10 . 2 . . . . . 3 . Electromagnetic 55 | . . 9 . . . 5 . 2 14 . 1 3 21 Robot Hit Streak 16 | 3 8 7 2 5 . 4 . 3 10 7 5 3 16 Robot Miss Streak 6 | 3 2 5 1 6 . 2 . 1 3 2 3 2 3 Penetration Max 1 | . . . . . . . . . . . . . 1 Secondary Targets 1 | . . . . . . 1 . . . . . . . Max Gunslinging Chain 1 | . . . . . . 1 . . . . . . . Shots Hit Robots 211 | 14 22 23 8 7 . 9 . 5 43 20 9 3 48 Core Hits 137 | 7 11 20 8 15 . 8 . 4 15 9 6 4 30 Critical Kills 1 | . . . . . . . . . 1 . . . . Critical Parts Destroyed 2 | . . . . . . . . . 1 1 . . . Critical Strikes 5 | . . 1 . . . . . . 3 1 . . . Burn 1 | . . 1 . . . . . . . . . . . Destroy 3 | . . . . . . . . . 2 1 . . . Sever 1 | . . . . . . . . . 1 . . . . Melee Attacks 21 | . . 1 . . . . . 10 10 . . . . Impact 1 | . . 1 . . . . . . . . . . . Slashing 20 | . . . . . . . . 10 10 . . . . Piercing . | . . . . . . . . . . . . . . Sneak Attacks . | . . . . . . . . . . . . . . Combat Hostiles . | . . . . . . . . . . . . . . Follow-up Attacks . | . . . . . . . . . . . . . . Damage Inflicted 6563 | 169 233 951 435 874 . 247 . 123 971 443 254 157 1706 Guns 3361 | 169 177 304 46 84 . 151 . 82 750 443 223 . 932 Cannons 462 | . . . . . . . . . . . 31 59 372 Explosions 2449 | . 54 620 389 790 . 96 . . . . . 98 402 Melee 289 | . . 27 . . . . . 41 221 . . . . Ramming 2 | . 2 . . . . . . . . . . . . Kinetic 2608 | 169 177 47 46 . . 87 . 61 536 443 223 . 819 Thermal 791 | . . 192 . 84 . . . . . . . . 515 Explosive 2031 | . 54 604 389 790 . 96 . . . . . 98 . Electromagnetic 842 | . . 81 . . . 64 . 21 214 . 31 59 372 Impact 27 | . . 27 . . . . . . . . . . . Slashing 262 | . . . . . . . . 41 221 . . . . Piercing . | . . . . . . . . . . . . . . Highest Corruption 3 | . . . 1 . . . . . . . . . 3 Average Corruption 1 | . . . 1 . . . . . . . . . 3 Corruption Purged . | . . . . . . . . . . . . . . Corruption Blocked . | . . . . . . . . . . . . . . Effects 2 | . . . 1 . . . . . . . . . 1 Message Errors 1 | . . . 1 . . . . . . . . . . Matter Fused 1 | . . . . . . . . . . . . . 1 Overload Shots . | . . . . . . . . . . . . . . Overflow Damage 284 | . . 83 20 24 . . . . 16 . . . 141 Projectiles 6 | . . . . . . . . . . . . . 6 Explosions 262 | . . 83 20 24 . . . . . . . . 135 Melee 16 | . . . . . . . . . 16 . . . . Knockbacks . | . . . . . . . . . . . . . . Impact . | . . . . . . . . . . . . . . Kinetic . | . . . . . . . . . . . . . . Secondary . | . . . . . . . . . . . . . . Self-Inflicted Damage 362 | . . 110 186 23 . 43 . . . . . . . Shots 9 | . . 2 5 1 . 1 . . . . . . . Rammed 1 | . 1 . . . . . . . . . . . . Targets Rammed 1 | . 1 . . . . . . . . . . . . Kicked . | . . . . . . . . . . . . . . Crushed . | . . . . . . . . . . . . . . Highest Temperature 228 | . 18 28 5 228 . 54 . 30 12 . . . 86 Average Temperature 40 | . 9 9 5 74 . 24 . 19 5 . . . 30 Received Heat Transfer 2382 | . 123 295 66 594 . 180 24 54 291 24 27 . 704 Siege Activations . | . . . . . . . . . . . . . . Martial Activations . | . . . . . . . . . . . . . . Shielding Activations . | . . . . . . . . . . . . . . Robots Disrupted . | . . . . . . . . . . . . . . Combat Hostiles . | . . . . . . . . . . . . . . Robots Corrupted . | . . . . . . . . . . . . . . Combat Hostiles . | . . . . . . . . . . . . . . Parts Fried 2 | . . . . . . . . . . . . . 2 Impact Corruptions . | . . . . . . . . . . . . . . Robots Melted . | . . . . . . . . . . . . . . Combat Hostiles . | . . . . . . . . . . . . . . Parts Melted 1 | . . . . . . . . . . . . . 1 Heat Transferred 1236 | . . 518 . 148 . . . . . . . . 570 Parts Sabotaged . | . . . . . . . . . . . . . . Parts Stolen . | . . . . . . . . . . . . . . Parts Stripped . | . . . . . . . . . . . . . . Power Chain Reactions . | . . . . . . . . . . . . . . Alert | -11 -10 -9 -9 -8 -7 -7 -7 -6 -6 -6 -5 -5 -4 ------- Run | Yrd Mat Mat Min Mat Fac Low Low Fac Low Low Fac DSF Fac Maximum Alert Level 1 | . . . . 1 . . . . . . . . . Low Security (%) 99 | 100 100 100 100 97 100 . . 100 . . 100 100 100 Level 1 . | . . . . 2 . . . . . . . . . Level 2 . | . . . . . . . . . . . . . . Level 3 . | . . . . . . . . . . . . . . Level 4 . | . . . . . . . . . . . . . . Level 5 . | . . . . . . . . . . . . . . High Security . | . . . . . . . . . . . . . . Max Security . | . . . . . . . . . . . . . . Peak Influence 202 | 15 53 198 167 202 51 . . 20 . . 30 110 143 Initial 75 | . . 11 75 . 51 . . . . . . . 52 Average 42 | 1 27 40 78 70 34 . . 1 . . 3 56 62 Influence Increases 1876 | 15 89 491 212 254 . 90 . 41 165 20 42 110 347 Destroy 0b10 Robot/C 1020 | . 40 300 120 120 . 80 . 20 120 20 20 40 140 Destroy 0b10 Robot/NC 85 | 15 15 15 . 5 . . . . . . 10 . 25 Destroy Leader 208 | . 14 72 20 20 . 10 . . 30 . 10 10 22 Successful Hack 5 | . . . 5 . . . . . . . . . . Disable Machine 195 | . . 15 15 45 . . . . . . . . 120 Destroy Structure 318 | . 20 74 52 64 . . . 6 . . 2 60 40 Lose Combat Pursuer 45 | . . 15 . . . . . 15 15 . . . . Influence Decreases 1876 | 15 60 326 406 140 103 101 . 41 153 32 42 10 447 Entered New Map 256 | . . 18 119 . 63 5 . . . 3 . . 48 Time Decay 1168 | 15 60 218 247 80 40 86 . 31 143 19 42 . 187 Lost Part 442 | . . 90 40 60 . 10 . . 10 10 . 10 212 Lost Ally 10 | . . . . . . . . 10 . . . . . Squads Dispatched 8 | . 1 . . 1 . . . 2 . . . 1 3 Investigation 1 | . 1 . . . . . . . . . . . . Extermination . | . . . . . . . . . . . . . . Reinforcement 6 | . . . . 1 . . . 1 . . . 1 3 Assault . | . . . . . . . . . . . . . . Garrison 1 | . . . . . . . . 1 . . . . . Intercept . | . . . . . . . . . . . . . . Searches Triggered . | . . . . . . . . . . . . . . Construction Impeded 1 | . . . . . . . . . . . . . 1 Haulers Reinforced . | . . . . . . . . . . . . . . Active Scanning Responses . | . . . . . . . . . . . . . . Cargo Convoy Interrupts . | . . . . . . . . . . . . . . Stealth | -11 -10 -9 -9 -8 -7 -7 -7 -6 -6 -6 -5 -5 -4 --------- Run | Yrd Mat Mat Min Mat Fac Low Low Fac Low Low Fac DSF Fac Distress Signals 4 | . . 2 . . . . . . . . . . 2 Communications Jammed 17 | . . . . . . . . . . . . . 17 Distress Signals 17 | . . . . . . . . . . . . . 17 Times Spotted 91 | . 6 22 4 13 2 4 1 3 7 2 2 3 22 Peak Tracking Total 12 | . 2 11 3 4 3 4 1 2 3 1 1 2 12 Tactical Retreats 3 | . . 1 . . . . . 1 1 . . . . Traps | -11 -10 -9 -9 -8 -7 -7 -7 -6 -6 -6 -5 -5 -4 ------- Run | Yrd Mat Mat Min Mat Fac Low Low Fac Low Low Fac DSF Fac Traps Triggered 1 | . 1 . . . . . . . . . . . . Indirectly . | . . . . . . . . . . . . . . Trap Hack Attempts . | . . . . . . . . . . . . . . Triggered . | . . . . . . . . . . . . . . Disarmed . | . . . . . . . . . . . . . . Reprogrammed . | . . . . . . . . . . . . . . Reused . | . . . . . . . . . . . . . . Traps Extracted . | . . . . . . . . . . . . . . Installed . | . . . . . . . . . . . . . . Triggered . | . . . . . . . . . . . . . . Machines | -11 -10 -9 -9 -8 -7 -7 -7 -6 -6 -6 -5 -5 -4 ---------- Run | Yrd Mat Mat Min Mat Fac Low Low Fac Low Low Fac DSF Fac Machines Disabled 13 | . . 1 1 3 . . . . . . . . 8 Max in Single Turn 2 | . . 1 1 1 . . . . . . . . 2 Machines Repaired . | . . . . . . . . . . . . . . Machines Dismantled . | . . . . . . . . . . . . . . Machines Sabotaged . | . . . . . . . . . . . . . . Overloaded Fab Kills . | . . . . . . . . . . . . . . Hacking | -11 -10 -9 -9 -8 -7 -7 -7 -6 -6 -6 -5 -5 -4 --------- Run | Yrd Mat Mat Min Mat Fac Low Low Fac Low Low Fac DSF Fac Machines Accessed 7 | . . 1 2 . . 1 . . 1 . 2 . . Terminals 4 | . . 1 1 . . . . . . . 2 . . Fabricators . | . . . . . . . . . . . . . . Repair Stations . | . . . . . . . . . . . . . . Recycling Units . | . . . . . . . . . . . . . . Scanalyzers . | . . . . . . . . . . . . . . Garrison Access . | . . . . . . . . . . . . . . Total Hacks 8 | . . 1 3 . . 1 . . 1 . 2 . . Successful 6 | . . 1 2 . . 1 . . 1 . 1 . . Failed 2 | . . . 1 . . . . . . . 1 . . Catastrophic 1 | . . . . . . . . . . . 1 . . Database Lockouts . | . . . . . . . . . . . . . . Manual 2 | . . 1 . . . . . . . . 1 . . Terminals 5 | . . 1 2 . . . . . . . 2 . . Fabricators . | . . . . . . . . . . . . . . Repair Stations . | . . . . . . . . . . . . . . Recycling Units . | . . . . . . . . . . . . . . Scanalyzers . | . . . . . . . . . . . . . . Garrison Access . | . . . . . . . . . . . . . . Terminal Hacks 5 | . . . 2 . . 1 . . 1 . 1 . . Open Door 3 | . . . 1 . . 1 . . 1 . . . . Open DSF 1 | . . . . . . . . . . . 1 . . Zone Layout 1 | . . . 1 . . . . . . . . . . Fabricator Hacks . | . . . . . . . . . . . . . . Repair Station Hacks . | . . . . . . . . . . . . . . Recycling Unit Hacks . | . . . . . . . . . . . . . . Scanalyzer . | . . . . . . . . . . . . . . Garrison Access Hacks . | . . . . . . . . . . . . . . Unauthorized Hacks 1 | . . 1 . . . . . . . . . . . Terminals 1 | . . 1 . . . . . . . . . . . Botnet 1 | . . 1 . . . . . . . . . . . Fabricators . | . . . . . . . . . . . . . . Repair Stations . | . . . . . . . . . . . . . . Recycling Units . | . . . . . . . . . . . . . . Scanalyzers . | . . . . . . . . . . . . . . Garrison Access . | . . . . . . . . . . . . . . Data Cores Recovered 1 | . . . . . . . . . . . . . 1 Used . | . . . . . . . . . . . . . . Hacking Detections 3 | . . 1 1 . . . . . . . 1 . . Full Trace Events . | . . . . . . . . . . . . . . Feedback Events . | . . . . . . . . . . . . . . Feedback Blocked . | . . . . . . . . . . . . . . Robot Schematics Acquired . | . . . . . . . . . . . . . . Robots Built . | . . . . . . . . . . . . . . Authchips . | . . . . . . . . . . . . . . Time . | . . . . . . . . . . . . . . Total Robot Build Rating . | . . . . . . . . . . . . . . Part Schematics Acquired . | . . . . . . . . . . . . . . Parts Built . | . . . . . . . . . . . . . . Authchips . | . . . . . . . . . . . . . . Time . | . . . . . . . . . . . . . . Total Part Build Rating . | . . . . . . . . . . . . . . Part Studies Acquired . | . . . . . . . . . . . . . . Parts Repaired . | . . . . . . . . . . . . . . Time . | . . . . . . . . . . . . . . Parts Recycled . | . . . . . . . . . . . . . . Recycled Matter . | . . . . . . . . . . . . . . Retrieved Matter . | . . . . . . . . . . . . . . Retrieved Components . | . . . . . . . . . . . . . . Parts Scanalyzed . | . . . . . . . . . . . . . . Part Schematics Acquired . | . . . . . . . . . . . . . . Parts Damaged . | . . . . . . . . . . . . . . Bothacking | -11 -10 -9 -9 -8 -7 -7 -7 -6 -6 -6 -5 -5 -4 ------------ Run | Yrd Mat Mat Min Mat Fac Low Low Fac Low Low Fac DSF Fac Used RIF Installer . | . . . . . . . . . . . . . . Robots Hacked . | . . . . . . . . . . . . . . Non-combat . | . . . . . . . . . . . . . . Combat . | . . . . . . . . . . . . . . Robot Hacks Applied . | . . . . . . . . . . . . . . Relay Couplers Released . | . . . . . . . . . . . . . . Fabnet Peak Effective % . | . . . . . . . . . . . . . . Robots Rewired . | . . . . . . . . . . . . . . Allies Hacked . | . . . . . . . . . . . . . . Hacks Repelled . | . . . . . . . . . . . . . . Allies | -11 -10 -9 -9 -8 -7 -7 -7 -6 -6 -6 -5 -5 -4 -------- Run | Yrd Mat Mat Min Mat Fac Low Low Fac Low Low Fac DSF Fac Total Allies 3 | . . . . . . 3 . . . . . . . Largest Group 3 | . . . . . . 3 . . . . . . . Highest-Rated Group 93 | . . . . . . 93 . . . . . . . Highest-Rated Ally 31 | . . . . . . 31 . . . . . . . Total Orders 2 | . . . . . . . . 1 1 . . . . EXPLORE 2 | . . . . . . . . 1 1 . . . . Ally Attacks . | . . . . . . . . . . . . . . Total Damage . | . . . . . . . . . . . . . . Kills . | . . . . . . . . . . . . . . Allies Corrupted . | . . . . . . . . . . . . . . Allies Melted . | . . . . . . . . . . . . . . Intel | -11 -10 -9 -9 -8 -7 -7 -7 -6 -6 -6 -5 -5 -4 ------- Run | Yrd Mat Mat Min Mat Fac Low Low Fac Low Low Fac DSF Fac Active Infowar (turns) 5425 | 40 75 559 548 238 76 275 971 466 1085 385 252 54 401 Optics 1107 | . . 559 548 . . . . . . . . . . Terrain 2232 | 40 75 541 . . . . . 400 898 . . . 278 Structural 1653 | . . . . . 76 275 971 324 . . . . 7 Seismic 494 | . . . . 238 . . . 256 . . . . . Jamming 1275 | . . . . . . . . . 187 385 252 54 397 Robot Analysis Total . | . . . . . . . . . . . . . . Derelict Logs Recovered 9 | . . . 3 . . 3 1 . 2 . . . . Drone Launches 4 | . . . . . . . . 2 2 . . . . Drone Recoveries . | . . . . . . . . . . . . . . Exploration | -11 -10 -9 -9 -8 -7 -7 -7 -6 -6 -6 -5 -5 -4 ------------- Run | Yrd Mat Mat Min Mat Fac Low Low Fac Low Low Fac DSF Fac Turns Passed 6365 | 142 172 559 632 260 85 536 971 466 1425 385 252 54 426 Spaces Moved 4772 | 90 109 312 534 143 58 480 965 332 1012 282 191 36 228 Core 73 | 7 . 9 . 13 . . . . 22 . . . 22 Treads 130 | 2 12 80 . 5 14 16 . 1 . . . . . Legs 14 | . . . . . . . . . . 12 . . 2 Wheels 4554 | 81 97 223 534 125 44 464 965 331 989 270 191 36 204 Hover . | . . . . . . . . . . . . . . Flight 1 | . . . . . . . . . 1 . . . . Fastest Speed 50 | 50 95 95 110 100 100 100 100 115 115 115 115 100 50 Average Speed 112 | 99 103 143 110 150 116 102 100 115 118 118 115 102 106 Slowest Speed 800 | 160 160 300 110 800 170 170 100 170 600 190 115 115 260 Overloaded Moves . | . . . . . . . . . . . . . . Propulsion Burnouts . | . . . . . . . . . . . . . . Robots Hopped . | . . . . . . . . . . . . . . Potential Cave-ins 3 | . . . . . . . . 3 . . . . . Cave-ins Triggered . | . . . . . . . . . . . . . . Exploration Rate (%) 36 | 4 25 33 86 17 1 67 91 13 94 27 6 35 8 Regions Visited 13 Branch Regions 5 Pre-discovered Areas 1 | . . . 1 . . . . . . . . . . Known Exits Taken 4 | . . . 1 . . 1 . 1 . . 1 . . Unknown Exits Taken 8 | 1 1 1 . 1 1 . 1 . 1 1 . . . Scrap Searched 9 | . . . 1 . . 1 2 . 4 1 . . . Spaces Dug 10 | . . . . . . . . 9 . . . . 1 Terrain Destroyed 328 | . 19 81 75 61 . 18 . 9 . 5 . 38 22 Melee 9 | . . . . . . . . 9 . . . . . Projectile 16 | . . . . 1 . 1 . . . 5 . . 9 AOE 303 | . 19 81 75 60 . 17 . . . . . 38 13 Terrain Rammed . | . . . . . . . . . . . . . . Walls Destroyed . | . . . . . . . . . . . . . . Machines Disabled . | . . . . . . . . . . . . . . Actions | -11 -10 -9 -9 -8 -7 -7 -7 -6 -6 -6 -5 -5 -4 --------- Run | Yrd Mat Mat Min Mat Fac Low Low Fac Low Low Fac DSF Fac Total 5396 | 115 143 374 568 170 74 511 971 399 1177 307 208 46 333 Wait 115 | . 4 . 7 . 2 4 2 25 70 . . . 1 Move 4760 | 89 109 311 533 142 57 479 964 331 1011 281 190 35 228 Hop . | . . . . . . . . . . . . . . Pick Up 104 | 6 6 12 6 2 5 6 4 7 16 4 5 2 23 Fast Attach 43 | 7 1 2 1 4 2 4 . 4 5 1 . 3 9 Attach 66 | . 1 10 4 2 6 2 . 2 8 1 3 1 26 Detach 12 | . 1 . 3 2 1 . . 2 3 . . . . Swap 24 | . 2 6 . 1 1 2 . 4 5 1 . . 2 Drop 67 | . 4 7 2 7 . 7 1 11 13 5 2 2 6 Fire 184 | 13 15 25 12 10 . 7 . 3 36 14 8 3 38 Melee 21 | . . 1 . . . . . 10 10 . . . . Ram . | . . . . . . . . . . . . . . Kick . | . . . . . . . . . . . . . . Crush . | . . . . . . . . . . . . . . Escape Stasis . | . . . . . . . . . . . . . . Rewire . | . . . . . . . . . . . . . . Trap . | . . . . . . . . . . . . . . Miscellaneous . | . . . . . . . . . . . . . . Route ------- -11/Scrapyard -10/Materials -9/Materials -9/Mines (discovered 2 exits: *Mat x2) -8/Materials (discovered 2 exits: *Fac / Sto) -7/Factory -7/Lower Caves -7/Lower Caves -6/Factory (discovered 2 exits: *Low x2) -6/Lower Caves -6/Lower Caves -5/Factory -5/DSF -4/Factory History --------- Turn | Location | Event 23 | -11/Scrapyard | Discovered new exit (range 15) 143 | -11/Scrapyard | Entered Materials 305 | -10/Materials | Build established: Mutant 311 | -10/Materials | Discovered new exit (range 3) 315 | -10/Materials | Entered another Materials area 315 | -9/Materials | Evolved 2 slots: Utility x2 618 | -9/Materials | Build established: Scavenger-Mutant 823 | -9/Materials | Discovered new exit (range 17) 874 | -9/Materials | Entered Mines 900 | -9/Mines | Destroyed 11 combat bots 907 | -9/Mines | Lost 6 parts (1p2n2u1w) 969 | -9/Mines | Found a Scrap Suit stashed away for nefarious purposes 972 | -9/Mines | Found Scrap Suit 992 | -9/Mines | Learned location of Zion (-6) 1003 | -9/Mines | Identified exit to Materials 1020 | -9/Mines | Core integrity fell below 50% 1063 | -9/Mines | Lost 3 parts (1p1n1w) 1129 | -9/Mines | Build established: Mutant 1422 | -9/Mines | Met a Derelict who couldn't figure out how to use a Trap Extractor 1474 | -9/Mines | Discovered exit to Materials (range 12) 1506 | -9/Mines | Entered Materials 1506 | -8/Materials | Evolved 2 slots: Utility x2 1507 | -8/Materials | Identified exit to Storage 1722 | -8/Materials | Discovered new exit (range 10) 1766 | -8/Materials | Entered Factory 1766 | -7/Factory | Evolved 2 slots: Propulsion x1, Utility x1 1791 | -7/Factory | Lost 5 parts (1p2u2w) 1842 | -7/Factory | Discovered new exit (range 7) 1851 | -7/Factory | Entered Lower Caves 1933 | -7/Lower Caves | Encountered a Warlord checkpoint 1942 | -7/Lower Caves | Identified exit to Lower Caves 2296 | -7/Lower Caves | Learned Factory trap positions 2304 | -7/Lower Caves | Entered an active Warlord outpost 2325 | -7/Lower Caves | A Commander dispatched an escort 2387 | -7/Lower Caves | Entered another Lower Caves area 2387 | -7/Lower Caves | Accompanied by 1 ally 2388 | -7/Lower Caves | Commander's escort returned to base 2457 | -7/Lower Caves | Build established: Scavenger-Mutant 2521 | -7/Lower Caves | Discovered new exit (range 12) 2551 | -7/Lower Caves | Learned 8 Factory zone layouts 2869 | -7/Lower Caves | Encountered a Warlord checkpoint 3246 | -7/Lower Caves | Attracted the attention of an 0b10 checkpoint 3358 | -7/Lower Caves | Entered Factory 3358 | -6/Factory | Evolved 2 slots: Utility x2 3359 | -6/Factory | Identified exit to Lower Caves 3360 | -6/Factory | Loaded intel: 98 trap records 3726 | -6/Factory | Build established: Derelict-Mutant 3727 | -6/Factory | Garrison activated, responded to threat 3824 | -6/Factory | Entered Lower Caves 4094 | -6/Lower Caves | Encountered a Warlord checkpoint 4206 | -6/Lower Caves | Learned Factory terminal intel 4329 | -6/Lower Caves | Build established: Mutant 4547 | -6/Lower Caves | Learned Factory emergency access door positions 4569 | -6/Lower Caves | Spotted B-75 Beast 4617 | -6/Lower Caves | Destroyed B-75 Beast 4643 | -6/Lower Caves | Lost 7 parts (1p1n3u2w) 4742 | -6/Lower Caves | Discovered new exit (range 86) 4981 | -6/Lower Caves | Build established: Derelict-Mutant 5249 | -6/Lower Caves | Entered another Lower Caves area 5342 | -6/Lower Caves | Discovered new exit (range 6) 5541 | -6/Lower Caves | Spotted B-75 Beast 5634 | -6/Lower Caves | Entered Factory 5634 | -5/Factory | Evolved 2 slots: Utility x2 5636 | -5/Factory | Loaded intel: 25 terminal locations 5885 | -5/Factory | Identified exit to DSF 5886 | -5/Factory | Entered DSF 5911 | -5/DSF | Additional patrols routed to DSF 5923 | -5/DSF | Discovered new exit (range 15) 5940 | -5/DSF | Entered Factory 5940 | -4/Factory | Evolved 2 slots: Power x1, Propulsion x1 5956 | -4/Factory | Lost 3 parts (1n2w) 6278 | -4/Factory | Lost 11 parts (3p5u3w) 6351 | -4/Factory | Core integrity fell below 50% 6355 | -4/Factory | Released all parts (8) 6361 | -4/Factory | Core integrity fell below 20% 6362 | -4/Factory | Spotted B-86 Titan 6366 | -4/Factory | Destroyed by B-86 Titan with Hardcell Cannon Last Messages --------------- 06355_ Released Terrain Scan Processor. 06355_ Released Huge Storage Unit. 06355_ Released Core Analyzer. 06355_ Released Mak. Weapon Shielding. 06355_ Released Matter Compressor. 06355_ Penetrated by Slug. 06355_ Slug penetrates Wall. 06357_ Slug penetrates Power Conduit. 06360_ Power Conduit explodes. 06360_ L-61 Swordsman destroyed. 06360_ U-05 Engineer lays Concrete. 06360_ G-67 Veteran knocked back. 06361_ Slug penetrates Wall. 06361_ U-05 Engineer lays Concrete. 06363_ Power Conduit explodes. 06363_ Slug penetrates Wall. 06363_ G-67 Veteran knocked back. 06363_ U-05 Engineer lays Concrete. 06364_ K-01 Serf collects debris. 06365_ U-05 Engineer lays Concrete. Map ----- +----------------------------------------------------+ | ?????????????????????????????????????????????????? | | ?????????????????????????????????????????????????? | | ?????????????????????????????????????????????????? | | ?????????????????????????????????????????????????? | | ?????????????????????????????????????????????????? | | ?????????????????????????????????????????????????? | | ?????????????????????????????????????????????????? | | ?????????????????????????????????????????????????? | | ?????????????????????????????????????????????????? | | ?????????????????????????????????????????????????? | | ?????????????????????????????????????????????????? | | ?????????????????????????????????????????????????? | | ?????????????????????????????????????????????????? | | ?????????????????????????????????##??????????????? | | ?????????????????????????????#### ????????????? | | ????????????????????????????? ????????????? | | ????????????????????????????? ???????????? | | ???????????????????????????? ???????????? | | ???????????????????????????? ??????????? | | ???????????????????????????? =]] #??????????? | | ??????????????????#+######## =] #??????????? | | ??????????????????# ]] #??????????? | | ??????????????????# #??????????? | | ?????????????"""??+ === !!! #??????????? | | ?????? ??????? ?# === !! #??????????? | | ????#???"?"?"""" # ==@ % u!! t#??????????? | | ???????? ? ; #??????????? | | ????#???????"""" # ! #??????????? | | ??? ??????????? ??# """ ????????? | | ""???# ? ? ??????# Y" ? ??????????? | | "? ?#?????????????# """ ??????????? | | "???#?##?##?#????##t ????????? | | ###???#??#?#??# k ????????? | | ???#?#########??## BB######?????????? | | #+################# ;BB#??????????????? | | g ;;##??????????????? | | ; #???????????????? | | ??? g u ###???????????????? | | ?? ? g #?????????????????? | | ?? ? """ " #????????????? | | # #?T###### """ " !!!#????????????? | | #%#### # """ !!!#????????????? | | ##+######### " / !! #????????????? | | = # #????????????? | | #*! %= ! #????????????? | | #=%% * % #????????????? | | #!!= " !#????????????? | | # ###"" ""####????????????? | | # # " ???????????????? | | % % #!* # """" # """ """??????????????? | +----------------------------------------------------+ Best States ------------- Heat Dissipation 62 Energy Generation 65 Energy Capacity 730 Matter Stores 685 Matter Capacity 750 Sight Range 18 Terrain Scan Range 20 Terrain Scan Density 85 Jamming Range 14 Additional Mass Support 6 Corruption Containment 8 Armor Coverage 600 Core Shielding 20 Power Shielding 66 Weapon Shielding 15 Evasion (%) 50 Melee Accuracy 6 Core Analysis 6 Recoil Reduction 2 Matter Filtering 30 Offensive Hacking 12 Item Schematics ----------------- None Robot Schematics ------------------ None Fabricated ------------ Nothing Repaired ---------- Nothing Studied --------- None Alien Tech Used ----------------- None Achievements -------------- None Challenges ------------ None Game ------ Seed MetafieldCoolingWheel Manual? 0 Play Time 01:18:04 Cumulative 86.5 hours Start 2025.11.22 @ 15:38:46 End 2025.11.24 @ 17:46:38 Sessions 5 Manual Loads 0 Difficulty Rogue Special Mode None Game No. 110 Rogue 110 Adventurer 0 Explorer 0 Win Type - Total 0 Types 0/0/0/0/0/0/0/0/0/0 Lore% 24 Gallery% 41 Achievement% 25 Wizard Run 0 Options --------- Layout 0 ASCII 0 Keyboard 0 Movement Mouse Keybinds 0 Fullscreen 1 Font 24/Smallcaps Map View 76x50 Zoom Use 0% Tactical HUD 1 Map Filters NONE Filters NONE Steam 1 RUN: 5ca37ee5-bfd7-40c8-9a42-65a36e9cf4ab